[Event "FEDA International IM 2020"]
[Site "La Palma"]
[Date "2020.11.30"]
[Round "1.1"]
[White "Adla, Diego"]
[Black "Vergara Anton, Diego"]
[Result "1/2-1/2"]
[ECO "A06"]
[WhiteElo "2433"]
[BlackElo "2177"]
[Annotator "ChessBase"]
[PlyCount "81"]
[EventDate "2020.11.29"]
[EventType "tourn"]
[EventCountry "ESP"]
[SourceTitle "playchess.com"]
[Source "ChessBase"]
[SourceQuality "1"]
[TimeControl "40/5400+30:1800+30"]

1. Nf3 {[%emt 0:00:00]} d5 {[%emt 0:00:00]} 2. c4 {[%emt 0:00:00]} e6 {[%emt 0:00:00]} 3. e3 {[%emt 0:00:00]} Nf6 {[%emt 0:00:00]} 4. b3 {[%emt 0:00:03]} c5 {[%emt 0:00:59]} 5. Bb2 {[%emt 0:00:55]} Nc6 {[%emt 0:00:17]} 6. cxd5 {[%emt 0:02:12]} exd5 {[%emt 0:02:32]} 7. Bb5 {[%emt 0:00:29]} Be7 {[%emt 0:04:01]} 8. O-O {[%emt 0:00:09]} Qb6 {[%emt 0:02:00]} 9. Be2 {[%emt 0:00:57]} O-O {[%emt 0:02:47]} 10. d4 {[%emt 0:00:17]} cxd4 {[%emt 0:04:02]} 11. Nxd4 {[%emt 0:00:06]} Be6 {[%emt 0:02:22]} 12. Nd2 {[%emt 0:01:15]} Rac8 {[%emt 0:06:35]} 13. Rc1 {[%emt 0:06:23]} Rfd8 {[%emt 0:09:43]} 14. Nxe6 {[%emt 0:03:07]} fxe6 {[%emt 0:00:21]} 15. Bg4 {[%emt 0:00:07]} Nb4 {[%emt 0:09:59]} 16. Rxc8 {[%emt 0:02:51]} Rxc8 {[%emt 0:00:14]} 17. Bh3 {[%emt 0:00:05]} Qd6 {[%emt 0:15:35]} 18. a3 {[%emt 0:43:22]} Nd3 {[%emt 0:05:34]} 19. Bd4 {[%emt 0:00:51]} Rc1 {[%emt 0:01:35]} 20. Qe2 {[%emt 0:00:11]} Rxf1+ {[%emt 0:00:25]} 21. Qxf1 {[%emt 0:05:38]} Ne5 {[%emt 0:02:51]} 22. b4 {[%emt 0:01:37]} Nc6 {[%emt 0:01:50]} 23. Bc5 {[%emt 0:02:30]} Qd7 {[%emt 0:00:21]} 24. Qc1 {[%emt 0:05:11]} Bxc5 {[%emt 0:01:48]} 25. Qxc5 {[%emt 0:00:03]} a6 {[%emt 0:02:35]} 26. g3 {[%emt 0:00:52]} Kf7 {[%emt 0:01:21]} 27. Nb3 {[%emt 0:04:42]} Ne4 {[%emt 0:04:43]} 28. Qb6 {[%emt 0:00:08]} Nd8 {[%emt 0:05:20]} 29. Bg2 {[%emt 0:02:03]} Qd6 {[%emt 0:01:34]} 30. Qd4 {[%emt 0:00:56]} Nf6 {[%emt 0:00:42]} 31. Nc5 {[%emt 0:01:21]} Ke7 {[%emt 0:01:06]} 32. f4 {[%emt 0:03:05]} Qc6 {[%emt 0:04:35]} 33. h3 {[%emt 0:00:40]} b6 {[%emt 0:00:19]} 34. Nxa6 {[%emt 0:05:25]} Qc1+ {[%emt 0:02:10]} 35. Kh2 {[%emt 0:00:13]} Qxa3 {[%emt 0:00:36]} 36. Qxb6 {[%emt 0:01:15]} Nd7 {[%emt 0:00:30]} 37. Qa7 {[%emt 0:04:30]} Nc6 {[%emt 0:00:17]} 38. Qb7 {[%emt 0:00:09]} Nd8 {[%emt 0:00:04]} 39. Qa7 {[%emt 0:00:18]} Nc6 {[%emt 0:00:07]} 40. Qb7 {[%emt 0:00:05]} Nd8 {[%emt 0:00:16]} 41. Qa7 {[%emt 0:30:46]} 1/2-1/2

[Event "FEDA International IM 2020"]
[Site "La Palma"]
[Date "2020.11.30"]
[Round "1.4"]
[White "Quispe Arteaga, Gabriel"]
[Black "Hernandez, Cristian Andres"]
[Result "0-1"]
[ECO "A06"]
[WhiteElo "2397"]
[BlackElo "2322"]
[Annotator "ChessBase"]
[PlyCount "116"]
[EventDate "2020.11.29"]
[EventType "tourn"]
[EventCountry "ESP"]
[SourceTitle "playchess.com"]
[Source "ChessBase"]
[SourceQuality "1"]
[TimeControl "40/5400+30:1800+30"]

1. Nf3 {[%emt 0:00:00]} d5 {[%emt 0:00:27]} 2. e3 {[%emt 0:00:33]} Nf6 {[%emt 0:00:24]} 3. b3 {[%emt 0:00:07]} Bf5 {[%emt 0:04:27]} 4. Be2 {[%emt 0:02:12]} h6 {[%emt 0:00:00]} 5. Bb2 {[%emt 0:00:16]} e6 {[%emt 0:00:28]} 6. Ne5 {[%emt 0:02:44]} Be7 {[%emt 0:00:00]} 7. d3 {[%emt 0:02:13]} Nbd7 {[%emt 0:03:37]} 8. Nxd7 {[%emt 0:00:12]} Qxd7 {[%emt 0:00:00]} 9. Nd2 {[%emt 0:00:06]} c5 {[%emt 0:03:45]} 10. a4 {[%emt 0:01:00]} O-O {[%emt 0:02:41]} 11. g4 {[%emt 0:07:12]} Bh7 {[%emt 0:00:35]} 12. h4 {[%emt 0:00:15]} d4 {[%emt 0:15:13]} 13. e4 {[%emt 0:00:25]} Qc7 {[%emt 0:11:06]} 14. g5 {[%emt 0:25:53]} hxg5 {[%emt 0:00:47]} 15. hxg5 {[%emt 0:00:38]} Nd7 {[%emt 0:00:36]} 16. Rg1 {[%emt 0:00:28]} Ne5 {[%emt 0:11:35]} 17. Bh5 {[%emt 0:04:21]} g6 {[%emt 0:14:09]} 18. Be2 {[%emt 0:01:30]} f5 {[%emt 0:01:02]} 19. f4 {[%emt 0:18:16]} Nc6 {[%emt 0:12:37]} 20. e5 {[%emt 0:00:05]} Kg7 {[%emt 0:00:38]} 21. Bf3 {[%emt 0:04:41]} Bg8 {[%emt 0:00:30]} 22. Qe2 {[%emt 0:08:46]} Bf7 {[%emt 0:00:06]} 23. Rh1 {[%emt 0:01:38]} Rh8 {[%emt 0:00:15]} 24. O-O-O {[%emt 0:00:18]} Rag8 {[%emt 0:02:47]} 25. Qg2 {[%emt 0:02:09]} Be8 {[%emt 0:02:46]} 26. Nc4 {[%emt 0:00:05]} b6 {[%emt 0:02:05]} 27. Kb1 {[%emt 0:04:00]} a6 {[%emt 0:02:50]} 28. Na3 {[%emt 0:04:30]} Na5 {[%emt 0:00:56]} 29. Nc4 {[%emt 0:00:30]} Nc6 {[%emt 0:02:48]} 30. Na3 {[%emt 0:00:06]} Nb4 {[%emt 0:01:23]} 31. c3 {[%emt 0:00:57]} dxc3 {[%emt 0:00:11]} 32. Bxc3 {[%emt 0:00:05]} b5 {[%emt 0:00:33]} 33. axb5 {[%emt 0:01:12]} axb5 {[%emt 0:00:06]} 34. Nc2 {[%emt 0:01:01]} Nxc2 {[%emt 0:01:25]} 35. Qxc2 {[%emt 0:01:11]} Bc6 {[%emt 0:00:53]} 36. Qg2 {[%emt 0:00:04]} Bxf3 {[%emt 0:00:12]} 37. Qxf3 {[%emt 0:00:02]} c4 {[%emt 0:00:43]} 38. Rxh8 {[%emt 0:00:56]} Rxh8 {[%emt 0:00:07]} 39. dxc4 {[%emt 0:04:37]} bxc4 {[%emt 0:00:05]} 40. b4 {[%emt 0:01:09]} Qa7 {[%emt 0:02:53]} 41. Qc6 {[%emt 0:31:00]} Kf7 {[%emt 0:31:39]} 42. Qxc4 {[%emt 0:01:36]} Qa4 {[%emt 0:00:00]} 43. Rc1 {[%emt 0:01:49]} Rb8 {[%emt 0:00:01]} 44. Qa2 {[%emt 0:00:10]} Qc6 {[%emt 0:00:43]} 45. Bd2 {[%emt 0:00:09]} Qe4+ {[%emt 0:00:34]} 46. Qc2 {[%emt 0:00:01]} Qd4 {[%emt 0:00:50]} 47. Qb2 {[%emt 0:00:31]} Qe4+ {[%emt 0:01:06]} 48. Qc2 {[%emt 0:00:01]} Qd5 {[%emt 0:00:01]} 49. Rd1 {[%emt 0:00:14]} Rb7 {[%emt 0:00:45]} 50. Bc3 {[%emt 0:00:30]} Qc4 {[%emt 0:00:34]} 51. Rd4 {[%emt 0:00:11]} Qf1+ {[%emt 0:00:16]} 52. Kb2 {[%emt 0:01:51]} Bc5 {[%emt 0:00:17]} 53. Qd1 {[%emt 0:00:27]} Qb5 {[%emt 0:00:21]} 54. Qh1 {[%emt 0:00:55]} Bxd4 {[%emt 0:00:33]} 55. Qh7+ {[%emt 0:00:00]} Kf8 {[%emt 0:00:23]} 56. Qh8+ {[%emt 0:00:00]} Ke7 {[%emt 0:00:18]} 57. Qf6+ {[%emt 0:01:53]} Kd7 {[%emt 0:00:12]} 58. Qg7+ {[%emt 0:01:17]} Kc6 {[%emt 0:00:23]} 0-1

[Event "FEDA International IM 2020"]
[Site "La Palma"]
[Date "2020.11.30"]
[Round "1.5"]
[White "Habans Aguerrea, Javier"]
[Black "Alonso Garcia, Aaron"]
[Result "1-0"]
[ECO "E11"]
[WhiteElo "2269"]
[BlackElo "2258"]
[Annotator "ChessBase"]
[PlyCount "89"]
[EventDate "2020.11.29"]
[EventType "tourn"]
[EventCountry "ESP"]
[SourceTitle "playchess.com"]
[Source "ChessBase"]
[SourceQuality "1"]
[TimeControl "40/5400+30:1800+30"]

1. d4 {[%emt 0:00:00]} Nf6 {[%emt 0:00:00]} 2. c4 {[%emt 0:00:00]} e6 {[%emt 0:01:00]} 3. Nf3 {[%emt 0:00:06]} Bb4+ {[%emt 0:00:25]} 4. Bd2 {[%emt 0:00:19]} c5 {[%emt 0:00:05]} 5. g3 {[%emt 0:02:46]} O-O {[%emt 0:06:19]} 6. Bxb4 {[%emt 0:00:35]} cxb4 {[%emt 0:00:02]} 7. Bg2 {[%emt 0:00:03]} a5 {[%emt 0:00:06]} 8. O-O {[%emt 0:01:23]} d6 {[%emt 0:01:28]} 9. a3 {[%emt 0:01:14]} Na6 {[%emt 0:00:07]} 10. axb4 {[%emt 0:02:42]} axb4 {[%emt 0:03:28]} 11. b3 {[%emt 0:01:41]} Re8 {[%emt 0:01:26]} 12. Qc2 {[%emt 0:06:07]} Qc7 {[%emt 0:04:16]} 13. Nbd2 {[%emt 0:06:11]} Bd7 {[%emt 0:10:19]} 14. Qb2 {[%emt 0:11:46]} Bc6 {[%emt 0:09:06]} 15. Rfd1 {[%emt 0:05:28]} Qb8 {[%emt 0:07:28]} 16. Rac1 {[%emt 0:07:24]} e5 {[%emt 0:03:02]} 17. e3 {[%emt 0:04:19]} e4 {[%emt 0:08:45]} 18. Ng5 {[%emt 0:03:58]} h6 {[%emt 0:01:06]} 19. Nh3 {[%emt 0:00:40]} Qd8 {[%emt 0:02:38]} 20. Nf4 {[%emt 0:02:09]} Bd7 {[%emt 0:05:46]} 21. h3 {[%emt 0:12:41]} Nc7 {[%emt 0:04:46]} 22. Ra1 {[%emt 0:03:59]} Rxa1 {[%emt 0:08:24]} 23. Qxa1 {[%emt 0:01:26]} Na6 {[%emt 0:06:01]} 24. Rc1 {[%emt 0:02:43]} Bf5 {[%emt 0:01:10]} 25. Kh2 {[%emt 0:00:48]} g5 {[%emt 0:05:44]} 26. Nd5 {[%emt 0:00:17]} Bg6 {[%emt 0:02:12]} 27. Qa4 {[%emt 0:01:34]} Nxd5 {[%emt 0:02:23]} 28. cxd5 {[%emt 0:00:01]} Re7 {[%emt 0:00:26]} 29. Qb5 {[%emt 0:01:27]} f5 {[%emt 0:00:44]} 30. Nc4 {[%emt 0:02:03]} Kf8 {[%emt 0:03:00]} 31. Bf1 {[%emt 0:08:32]} Rc7 {[%emt 0:01:07]} 32. Qb6 {[%emt 0:00:34]} Ke7 {[%emt 0:00:01]} 33. Ne5 {[%emt 0:03:44]} Be8 {[%emt 0:00:15]} 34. Rd1 {[%emt 0:02:22]} Rc2 {[%emt 0:01:57]} 35. Qxb7+ {[%emt 0:01:36]} Nc7 {[%emt 0:00:01]} 36. Bc4 {[%emt 0:01:18]} Rxf2+ {[%emt 0:01:04]} 37. Kg1 {[%emt 0:00:01]} Ra2 {[%emt 0:00:01]} 38. Rf1 {[%emt 0:01:50]} Bd7 {[%emt 0:00:51]} 39. Rxf5 {[%emt 0:01:54]} dxe5 {[%emt 0:00:42]} 40. d6+ {[%emt 0:01:19]} Kxd6 {[%emt 0:01:39]} 41. dxe5+ {[%emt 0:30:31]} Kc5 {[%emt 0:30:01]} 42. e6+ {[%emt 0:00:14]} Kd6 {[%emt 0:00:00]} 43. Qxb4+ {[%emt 0:00:05]} Kc6 {[%emt 0:00:00]} 44. Rc5+ {[%emt 0:00:20]} Kd6 {[%emt 0:00:00]} 45. Rb5+ {[%emt 0:00:16]} 1-0